bitfinex-derivatives/quotes_BTCF0:USTF0_20250130
["timestamp","ask_amount","ask_price","bid_price","bid_amount"]
[1738272305223,0.191212,105130.0,105120.0,0.6369545]
[1738272306817,0.191212,105130.0,105120.0,0.57056841]
[1738272307225,0.191212,105130.0,105120.0,0.58011504]
[1738272307622,0.191212,105130.0,105120.0,0.57811504]
[1738272307828,0.191212,105130.0,105120.0,0.58011504]
[1738272309027,0.191212,105130.0,105120.0,0.3029853]
[1738272312624,0.191212,105130.0,105120.0,0.6637853]
[1738272315624,0.191212,105130.0,105120.0,0.3029853]
[1738272322127,0.191212,105130.0,105120.0,0.73217139]
[1738272322321,0.191212,105130.0,105120.0,0.70449139]
[1738272322521,0.191212,105130.0,105120.0,0.73213139]
[1738272323126,0.001,105130.0,105120.0,0.73213139]
[1738272323331,0.001,105130.0,105120.0,0.76473139]
[1738272325228,0.191212,105130.0,105120.0,0.6963453]
[1738272325426,0.191212,105130.0,105120.0,0.3355453]
[1738272329041,0.001,105130.0,105120.0,0.6963453]
[1738272329339,0.191212,105130.0,105120.0,0.6963453]
[1738272331337,0.001,105130.0,105120.0,0.6963453]
[1738272331542,0.001,105130.0,105120.0,0.76473139]
[1738272332945,0.191218,105130.0,105120.0,0.6963453]
[1738272334045,0.001,105130.0,105120.0,0.6963453]
[1738272337138,0.191228,105130.0,105120.0,0.6963453]
[1738272337539,0.191228,105130.0,105120.0,0.6637453]
[1738272339047,0.191228,105130.0,105120.0,0.6361053]
[1738272339245,0.191228,105130.0,105120.0,0.6637053]
[1738272344749,0.191228,105130.0,105120.0,0.2753053]
[1738272344956,0.191228,105130.0,105120.0,0.3029053]
[1738272345153,0.191228,105130.0,105120.0,0.2753053]
[1738272345457,0.191228,105130.0,105120.0,0.3029053]
[1738272345957,0.552028,105130.0,105120.0,0.3029053]
[1738272347157,0.552028,105130.0,105120.0,0.2753053]
[1738272347359,0.552028,105130.0,105120.0,0.3029053]
[1738272347546,0.552028,105130.0,105120.0,0.1126753]
[1738272348551,0.62041409,105130.0,105120.0,0.01668921]
[1738272348746,0.62041409,105130.0,105120.0,0.04428921]
[1738272348953,0.62041409,105130.0,105120.0,0.01668921]
[1738272350960,0.87601978,105130.0,105120.0,0.01668921]
[1738272354459,0.7342449,105130.0,105120.0,0.01668921]
[1738272355254,0.66585881,105130.0,105120.0,0.2753243]
[1738272359868,0.7342449,105130.0,105120.0,0.20693821]
[1738272360165,0.7342449,105130.0,105120.0,0.01668921]
[1738272368873,0.66585881,105130.0,105120.0,0.0850753]
[1738272369171,0.7342449,105130.0,105120.0,0.20693821]
[1738272373874,0.66585881,105130.0,105120.0,0.20693821]
[1738272378379,0.66585881,105130.0,105120.0,0.2753243]
[1738272387986,0.7342449,105130.0,105120.0,0.20693821]
[1738272388786,0.66585881,105130.0,105120.0,0.20693821]
[1738272392789,0.7342449,105130.0,105120.0,0.20693821]
[1738272393886,0.66585881,105130.0,105120.0,0.20693821]
[1738272399685,0.66585881,105130.0,105120.0,0.2753243]
[1738272402287,0.80763369,105130.0,105120.0,0.2753243]
[1738272410694,0.80763369,105130.0,105120.0,0.3028443]
[1738272411298,0.80763369,105130.0,105120.0,0.23445821]
[1738272412801,0.87601978,105130.0,105120.0,0.23445821]
[1738272413790,0.44683369,105130.0,105120.0,0.37123039]
[1738272413996,0.44683369,105130.0,105120.0,0.3028443]
[1738272414197,0.44683369,105130.0,105120.0,0.37123039]
[1738272417303,0.30505881,105130.0,105120.0,0.37123039]
[1738272418203,0.30305881,105130.0,105120.0,0.37123039]
[1738272420911,0.189228,105130.0,105120.0,0.37123039]
[1738272429917,0.189228,105130.0,105120.0,0.3028443]
[1738272435718,0.189228,105130.0,105120.0,0.2978443]
[1738272435919,0.190228,105130.0,105120.0,0.3028443]
[1738272438018,0.190228,105130.0,105120.0,0.3018443]
[1738272438818,0.189228,105130.0,105120.0,0.2968443]
[1738272439021,0.189228,105130.0,105120.0,0.2988443]
[1738272443325,0.30305881,105130.0,105120.0,0.2988443]
[1738272445726,0.66385881,105130.0,105120.0,0.2713243]
[1738272446024,0.7322449,105130.0,105120.0,0.04012921]
[1738272446521,0.7322449,105130.0,105120.0,0.01268921]
[1738272447022,0.190285,105100.0,105090.0,1.10657441]
[1738272447217,0.190285,105100.0,105090.0,1.13401441]
[1738272447415,0.61947109,105100.0,105090.0,0.28799176]
[1738272447610,0.75055718,105100.0,105090.0,0.28799176]
[1738272447826,0.75055718,105100.0,105090.0,0.28646618]
[1738272448023,0.68217109,105100.0,105090.0,0.28646618]
[1738272448215,0.68217109,105100.0,105090.0,0.29046618]
[1738272448721,0.68317109,105100.0,105090.0,0.29746618]
[1738272449126,0.68317109,105100.0,105090.0,0.24756618]
[1738272449127,0.75155718,105100.0,105090.0,0.24756618]
[1738272449427,0.75155718,105100.0,105090.0,0.18832974]
[1738272450421,0.86538799,105100.0,105090.0,0.011]
[1738272452629,0.89548799,105100.0,105090.0,0.011]
[1738272454729,0.89548799,105100.0,105090.0,0.007]
[1738272454930,0.89548799,105100.0,105090.0,0.008]
[1738272455229,0.89448799,105100.0,105090.0,0.001]
[1738272455417,0.89848799,105100.0,105090.0,0.001]
[1738272456423,0.70820299,105100.0,105080.0,0.0097216]
[1738272456625,0.61948909,105090.0,105080.0,0.26842669]
[1738272457419,0.61948909,105090.0,105080.0,0.2000406]
[1738272458030,0.62048909,105090.0,105080.0,0.2000406]
[1738272461328,0.62048909,105090.0,105080.0,0.26842669]
[1738272461739,0.552103,105090.0,105080.0,0.26842669]
[1738272462041,0.191303,105090.0,105080.0,0.26842669]
[1738272462329,0.191303,105090.0,105080.0,0.39555278]
[1738272464235,0.191303,105090.0,105080.0,0.40155278]
[1738272464732,0.190303,105090.0,105080.0,0.39755278]
[1738272464939,0.191303,105090.0,105080.0,0.40155278]
[1738272465134,0.191303,105090.0,105080.0,0.33316669]
[1738272467245,0.191303,105090.0,105080.0,0.32916669]
[1738272467246,0.190303,105090.0,105080.0,0.32916669]
[1738272467431,0.191303,105090.0,105080.0,0.33316669]
[1738272468834,0.190303,105090.0,105080.0,0.32716669]
[1738272469034,0.191303,105090.0,105080.0,0.33316669]
[1738272469536,0.001,105090.0,105080.0,0.33316669]
[1738272469749,0.001,105090.0,105080.0,0.76235278]
[1738272472248,0.001,105090.0,105080.0,0.40155278]
[1738272474942,0.191303,105090.0,105080.0,0.40155278]
[1738272475243,0.191303,105090.0,105080.0,0.37411278]
[1738272475443,0.191303,105090.0,105080.0,0.33312669]
[1738272476448,0.191303,105090.0,105080.0,0.40151278]
[1738272476636,0.190303,105090.0,105080.0,0.40151278]
[1738272476838,0.191303,105090.0,105080.0,0.40151278]
[1738272483642,0.191303,105090.0,105080.0,0.37411278]
[1738272483840,0.191303,105090.0,105080.0,0.40151278]
[1738272484652,0.191303,105090.0,105080.0,0.39951278]
[1738272484850,0.191303,105090.0,105080.0,0.40151278]
[1738272485547,0.191303,105090.0,105080.0,0.39951278]
[1738272485747,0.191303,105090.0,105080.0,0.40151278]
[1738272489752,0.190303,105090.0,105080.0,0.39751278]
[1738272489958,0.190303,105090.0,105080.0,0.40151278]
[1738272489959,0.191303,105090.0,105080.0,0.40151278]
[1738272490558,0.190303,105090.0,105080.0,0.39951278]
[1738272491352,0.190303,105090.0,105080.0,0.39551278]
[1738272491552,0.191303,105090.0,105080.0,0.40051278]
[1738272492460,0.191303,105090.0,105080.0,0.40151278]
[1738272492757,0.191303,105090.0,105080.0,0.37411278]
[1738272493063,0.191303,105090.0,105080.0,0.40151278]
[1738272493560,0.190303,105090.0,105080.0,0.39951278]
[1738272494152,0.191303,105090.0,105080.0,0.40151278]
[1738272494871,0.191303,105090.0,105080.0,0.40051278]
[1738272495272,0.190303,105090.0,105080.0,0.39851278]
[1738272497873,0.190303,105090.0,105080.0,0.75931278]
[1738272498471,0.190303,105090.0,105080.0,0.39851278]
[1738272500768,0.551103,105090.0,105080.0,0.08110769]
[1738272500967,0.551103,105090.0,105080.0,0.0127216]
[1738272501574,0.551103,105090.0,105080.0,0.08110769]
[1738272504573,0.551103,105090.0,105080.0,0.08010769]
[1738272504872,0.552103,105090.0,105080.0,0.07810769]
[1738272505874,0.66593381,105090.0,105080.0,0.07810769]
[1738272513876,0.30513381,105090.0,105080.0,0.33681478]
[1738272514181,0.30513381,105090.0,105080.0,0.76091478]
[1738272514373,0.30513381,105090.0,105080.0,0.79411478]
[1738272514575,0.11483081,105090.0,105080.0,0.79411478]
[1738272514771,0.11483081,105090.0,105080.0,0.79511478]
[1738272515677,0.11383081,105090.0,105080.0,0.79511478]
[1738272515878,0.11383081,105090.0,105080.0,0.79711478]
[1738272516689,0.69542781,105100.0,105090.0,0.190303]
[1738272516981,0.33462781,105100.0,105090.0,0.28604909]
[1738272519181,0.221797,105100.0,105090.0,0.28604909]
[1738272521983,0.190303,105090.0,105080.0,0.29578569]
[1738272522483,0.190303,105090.0,105080.0,0.72497178]
[1738272523086,0.190303,105090.0,105080.0,0.72597178]
[1738272523787,0.190303,105090.0,105080.0,0.72797178]
[1738272528692,0.284296,105100.0,105090.0,0.190303]
[1738272528886,0.284296,105100.0,105090.0,0.25868909]
[1738272529981,0.285296,105100.0,105090.0,0.25868909]
[1738272530385,0.646096,105100.0,105090.0,0.25868909]
[1738272530691,0.285296,105100.0,105090.0,0.25868909]
[1738272530894,0.646096,105100.0,105090.0,0.25868909]
[1738272537097,0.646096,105100.0,105090.0,0.06838609]
[1738272537287,0.285296,105100.0,105090.0,0.06838609]
[1738272537595,0.646096,105100.0,105090.0,0.25868909]
[1738272540889,0.75992681,105100.0,105090.0,0.25868909]
[1738272541290,0.75992681,105100.0,105090.0,0.06838609]
[1738272541798,0.75992681,105100.0,105090.0,0.25868909]
[1738272542196,0.190303,105090.0,105080.0,0.62922169]
[1738272542396,0.190303,105090.0,105080.0,0.65654169]
[1738272543304,0.190303,105090.0,105080.0,0.72592778]
[1738272543802,0.190303,105090.0,105080.0,0.65954169]
[1738272543999,0.190303,105090.0,105080.0,0.63222169]
[1738272544301,0.190303,105090.0,105080.0,0.36712778]
[1738272544896,0.190303,105090.0,105080.0,0.29874169]
[1738272545291,0.190303,105090.0,105080.0,0.36712778]
[1738272545499,0.551103,105090.0,105080.0,0.36712778]
[1738272546104,0.551103,105090.0,105080.0,0.27142169]
[1738272546305,0.551103,105090.0,105080.0,0.29874169]
[1738272546798,0.551103,105090.0,105080.0,0.36712778]
[1738272547398,0.66493381,105090.0,105080.0,0.36712778]
[1738272548106,0.66493381,105090.0,105080.0,0.29874169]
[1738272552701,0.66493381,105090.0,105080.0,0.10842769]
[1738272553311,0.66493381,105090.0,105080.0,0.10642769]
[1738272553517,0.66493381,105090.0,105080.0,0.10842769]
[1738272555706,0.66593381,105090.0,105080.0,0.10542769]
[1738272556006,0.66593381,105090.0,105080.0,0.10642769]
[1738272556713,0.66593381,105090.0,105080.0,0.29574869]
[1738272559003,0.66493381,105090.0,105080.0,0.29574869]
[1738272559219,0.66493381,105090.0,105080.0,0.29774869]
[1738272559820,0.66493381,105090.0,105080.0,0.29874869]
[1738272560011,0.66493381,105090.0,105080.0,0.27142869]
[1738272560206,0.66493381,105090.0,105080.0,0.29870869]
[1738272560409,0.66493381,105090.0,105080.0,0.08110769]
[1738272560719,0.66493381,105090.0,105080.0,0.10838769]
[1738272562011,0.66593381,105090.0,105080.0,0.10638769]
[1738272562212,0.66593381,105090.0,105080.0,0.10538769]
[1738272562916,0.66593381,105090.0,105080.0,0.10638769]
[1738272563711,0.66493381,105090.0,105080.0,0.10838769]
[1738272564815,0.7333199,105090.0,105080.0,0.0127216]
[1738272565211,0.7333199,105090.0,105080.0,0.0107216]
[1738272565412,0.7343199,105090.0,105080.0,0.0107216]
[1738272565619,0.7343199,105090.0,105080.0,0.0097216]
[1738272565826,0.66593381,105090.0,105080.0,0.07810769]
[1738272566013,0.66593381,105090.0,105080.0,0.0097216]
[1738272566209,0.7343199,105090.0,105080.0,0.0097216]
[1738272567723,0.76226397,105090.0,105080.0,0.0097216]
[1738272568425,0.69387788,105090.0,105080.0,0.07810769]
[1738272571024,0.69387788,105090.0,105080.0,0.0097216]
[1738272571923,0.76226397,105090.0,105080.0,0.0097216]
[1738272572319,0.76426397,105090.0,105080.0,0.0097216]
[1738272572729,0.76726397,105090.0,105080.0,0.0097216]
[1738272573026,0.76526397,105090.0,105080.0,0.0097216]
[1738272573227,0.87528987,105090.0,105080.0,0.0097216]
[1738272573430,0.87628987,105090.0,105080.0,0.0097216]
[1738272573926,0.80790378,105090.0,105080.0,0.0097216]
[1738272575832,0.87628987,105090.0,105080.0,0.0097216]
[1738272576333,0.87528987,105090.0,105080.0,0.0097216]
[1738272576527,0.87928987,105090.0,105080.0,0.0097216]
[1738272577231,0.88128987,105090.0,105080.0,0.0097216]
[1738272578928,0.87828987,105090.0,105080.0,0.0097216]
[1738272579842,0.88128987,105090.0,105080.0,0.00014258]
[1738272581940,0.76726397,105090.0,105080.0,0.00014258]
[1738272583830,0.190321,105080.0,105070.0,0.0093475]
[1738272584031,0.52258609,105080.0,105060.0,0.28740456]
[1738272584225,0.25872509,105070.0,105060.0,0.28740456]
[1738272584430,0.61952509,105070.0,105060.0,0.00142747]
[1738272584630,0.190357,105060.0,105050.0,0.10474611]
[1738272584835,0.68792918,105060.0,105050.0,0.07254611]
[1738272585037,0.65074309,105060.0,105050.0,0.04144611]
[1738272585233,0.71912918,105060.0,105050.0,0.00974611]
[1738272585432,0.190375,105050.0,105040.0,0.00014258]
[1738272585630,0.61956109,105050.0,105040.0,0.00014258]
[1738272586531,0.62056109,105050.0,105040.0,0.00014258]
[1738272587546,0.62056109,105050.0,105040.0,0.00314258]
[1738272587729,0.68894718,105050.0,105040.0,0.00314258]
[1738272588140,0.64780109,105050.0,105040.0,0.00314258]
[1738272588533,0.71618718,105050.0,105040.0,0.00314258]
[1738272588840,0.71604616,105050.0,105040.0,0.00314258]
[1738272589537,0.190412,105030.0,105020.0,0.00142796]
[1738272589735,0.61959809,105030.0,105020.0,0.00142796]
[1738272590642,0.98039809,105030.0,105020.0,0.00642796]
[1738272591235,0.98139809,105030.0,105020.0,0.00642796]
[1738272592245,0.98139809,105030.0,105020.0,0.01591295]
[1738272594248,0.913012,105030.0,105020.0,0.27472904]
[1738272596147,0.98139809,105030.0,105020.0,0.27472904]
[1738272596446,0.62059809,105030.0,105020.0,0.27472904]
[1738272597450,0.62059809,105030.0,105020.0,0.20634295]
[1738272597748,0.62059809,105030.0,105020.0,0.27472904]
[1738272598649,0.552212,105030.0,105020.0,0.27472904]
[1738272598842,0.62059809,105030.0,105020.0,0.27472904]
[1738272599449,0.552212,105030.0,105020.0,0.26972904]
[1738272599753,0.552212,105030.0,105020.0,0.27272904]
[1738272599754,0.551212,105030.0,105020.0,0.27272904]
[1738272599943,0.61959809,105030.0,105020.0,0.27272904]
[1738272600145,0.61959809,105030.0,105010.0,0.06852867]
[1738272600340,0.59319827,105020.0,104950.0,0.63877512]
[1738272600553,0.68809318,104970.0,104960.0,0.9776267]
[1738272600946,0.68809318,104970.0,104960.0,0.96801886]
[1738272601647,0.71533318,104970.0,104960.0,0.96801886]
[1738272602652,0.78781048,104970.0,104960.0,0.82499486]
[1738272603143,0.78881048,104970.0,104960.0,0.62550486]
[1738272603356,0.552321,104970.0,104960.0,0.62550486]
[1738272603545,0.001,104970.0,104960.0,0.9845686]
[1738272604950,0.29614574,104970.0,104960.0,0.87994386]
[1738272605246,0.001,104970.0,104960.0,0.256439]
[1738272605451,0.08555313,104980.0,104970.0,0.190521]
[1738272605750,0.08590436,104990.0,104980.0,0.190502]
[1738272606250,0.08590436,104990.0,104980.0,0.65592674]
[1738272606553,0.17155953,105000.0,104990.0,0.190484]
[1738272606848,0.17170211,105000.0,104990.0,0.68660874]
[1738272607048,0.19848483,105020.0,104990.0,0.90074948]
[1738272607250,0.00142966,105050.0,105040.0,0.190394]
[1738272607554,0.551139,105070.0,105050.0,0.190366]
[1738272607749,0.551139,105070.0,105060.0,0.29498174]
[1738272608047,0.19224249,105070.0,105060.0,0.29498174]
[1738272608250,0.55304249,105070.0,105060.0,0.29498174]
[1738272608453,0.190357,105060.0,105050.0,0.29514032]
[1738272608752,0.551157,105060.0,105050.0,0.29514032]
[1738272608951,0.578397,105060.0,105050.0,0.00014258]
[1738272609344,0.551157,105060.0,105050.0,0.10476732]
[1738272609745,0.581397,105060.0,105050.0,0.10476732]
[1738272610147,0.554157,105060.0,105050.0,0.10476732]
[1738272610353,0.581397,105060.0,105050.0,0.10476732]
[1738272610551,0.578397,105060.0,105050.0,0.10476732]
[1738272611248,0.578397,105060.0,105050.0,0.00014258]
[1738272611441,0.68302174,105060.0,105050.0,0.00014258]
[1738272611749,0.578397,105060.0,105050.0,0.00014258]
[1738272612252,0.580397,105060.0,105050.0,0.00014258]
[1738272612756,0.579397,105060.0,105050.0,0.00014258]
[1738272612944,0.581397,105060.0,105050.0,0.00014258]
[1738272613148,0.583397,105060.0,105050.0,0.00014258]
[1738272615656,0.583397,105060.0,105050.0,0.10476732]
[1738272615960,0.556157,105060.0,105050.0,0.29514232]
[1738272616452,0.554157,105060.0,105050.0,0.10476732]
[1738272616645,0.68702174,105060.0,105050.0,0.00014258]
[1738272616852,0.582397,105060.0,105050.0,0.00014258]
[1738272617049,0.68702174,105060.0,105050.0,0.00014258]
[1738272617351,0.582397,105060.0,105050.0,0.00014258]
[1738272617756,0.555157,105060.0,105050.0,0.00014258]
[1738272617972,0.194357,105060.0,105050.0,0.29514232]
[1738272618456,0.553157,105060.0,105050.0,0.10476732]
[1738272618661,0.553157,105060.0,105050.0,0.29514232]
[1738272618858,0.002,105060.0,105050.0,0.29514232]
[1738272619063,0.004,105060.0,105050.0,0.29514232]
[1738272619254,0.003,105060.0,105050.0,0.65594232]
[1738272619449,0.005,105060.0,105050.0,0.65594232]
[1738272620060,0.005,105060.0,105050.0,0.76056706]
[1738272620253,0.3608,105070.0,105060.0,0.190357]
[1738272620454,0.551139,105070.0,105060.0,0.39960648]
[1738272620747,0.58237258,105080.0,105060.0,0.39960648]
[1738272620947,0.58237258,105080.0,105070.0,0.29496374]
[1738272620948,0.03124258,105080.0,105070.0,0.29496374]
[1738272621159,0.00014258,105080.0,105070.0,0.29496374]
[1738272621363,0.19046358,105080.0,105070.0,0.29496374]
[1738272621557,0.00014258,105080.0,105070.0,0.29496374]
[1738272622562,0.01314258,105080.0,105070.0,0.29496374]
[1738272624453,0.20346358,105080.0,105070.0,0.29496374]
[1738272624755,0.01314258,105080.0,105070.0,0.29496374]
[1738272625765,0.01314258,105080.0,105070.0,0.30430744]
[1738272625956,0.01314258,105080.0,105070.0,0.66510744]
[1738272626658,0.01314258,105080.0,105070.0,0.69520744]
[1738272627764,0.01014258,105080.0,105070.0,0.69520744]
[1738272627964,0.1,105100.0,105070.0,0.60949318]
[1738272628265,0.1,105100.0,105090.0,0.76035248]
[1738272628959,0.101,105100.0,105090.0,0.65572774]
[1738272629158,0.101,105100.0,105090.0,0.68292774]
[1738272629664,0.297285,105100.0,105090.0,0.68292774]
[1738272630260,0.107,105100.0,105090.0,0.78755248]
[1738272631163,0.106,105100.0,105090.0,0.78755248]
[1738272631363,0.109,105100.0,105090.0,0.78755248]
[1738272631559,0.109,105100.0,105090.0,0.68292774]
[1738272631959,0.109,105100.0,105090.0,0.69235184]
[1738272632564,0.109,105100.0,105090.0,0.79697658]
[1738272634165,0.00014258,105110.0,105100.0,0.190285]
[1738272634368,0.614921,105140.0,105100.0,0.65021948]
[1738272634560,0.3608,105160.0,105130.0,0.29485574]
[1738272634761,0.190176,105160.0,105150.0,0.39943948]
[1738272635158,0.75121338,105170.0,105150.0,0.29481474]
[1738272635363,0.190176,105160.0,105150.0,0.21791]
[1738272635568,0.6658187,105170.0,105150.0,0.21805258]
[1738272635761,0.8559877,105170.0,105150.0,0.21805258]
[1738272635966,0.550976,105160.0,105150.0,0.00014258]
[1738272636362,0.66060074,105160.0,105150.0,0.00014258]
[1738272636765,0.19023,105140.0,105120.0,0.32397437]
[1738272636968,0.551031,105130.0,105120.0,0.00142663]
[1738272638065,0.46542474,105130.0,105110.0,0.00014258]
[1738272638374,0.551049,105120.0,105110.0,0.00956145]
[1738272638672,0.65567374,105120.0,105110.0,0.00014258]
[1738272639169,0.190285,105100.0,105090.0,0.56948]
[1738272639371,0.190285,105100.0,105090.0,0.86440774]
[1738272640270,0.190285,105100.0,105090.0,0.67410474]
[1738272640470,0.190285,105100.0,105090.0,0.56948]
[1738272640865,0.190285,105100.0,105090.0,0.759783]
[1738272641269,0.551085,105100.0,105090.0,0.56948]
[1738272641459,0.551085,105100.0,105090.0,0.57448]
[1738272641658,0.551085,105100.0,105090.0,0.57548]
[1738272641869,0.551085,105100.0,105090.0,0.006]
[1738272642062,0.73519276,105100.0,105090.0,0.006]
[1738272642262,0.190303,105090.0,105080.0,0.28344113]
[1738272642471,0.70757076,105090.0,105080.0,0.28344113]
[1738272642965,0.551103,105090.0,105080.0,0.28344113]
[1738272643164,0.551103,105090.0,105080.0,0.00014258]
[1738272644568,0.551103,105090.0,105080.0,0.00114258]
[1738272644768,0.551103,105090.0,105080.0,0.00514258]
[1738272645369,0.552103,105090.0,105080.0,0.00014258]
[1738272645574,0.554103,105090.0,105080.0,0.00014258]
[1738272647472,0.71057076,105090.0,105080.0,0.00014258]
[1738272647874,0.554103,105090.0,105080.0,0.00014258]
[1738272648180,0.554103,105090.0,105080.0,0.37481134]
[1738272648181,0.193303,105090.0,105080.0,0.37481134]
[1738272648390,0.554103,105090.0,105080.0,0.34693134]
[1738272648674,0.554103,105090.0,105080.0,0.37481134]
[1738272649981,0.554103,105090.0,105080.0,0.21834358]
[1738272650583,0.003,105090.0,105080.0,0.37481134]
[1738272650883,0.193303,105090.0,105080.0,0.21834358]
[1738272651066,0.190303,105090.0,105080.0,0.22234358]
[1738272651271,0.190303,105090.0,105080.0,0.22334358]
[1738272651477,0.551103,105090.0,105080.0,0.22334358]
[1738272651675,0.190303,105090.0,105080.0,0.22334358]
[1738272651981,0.551103,105090.0,105080.0,0.22334358]
[1738272653071,0.551103,105090.0,105080.0,0.22330358]
[1738272653375,0.551103,105090.0,105080.0,0.23544192]
[1738272653974,0.551103,105090.0,105080.0,0.23144192]
[1738272654280,0.551103,105090.0,105080.0,0.23544192]
[1738272655084,0.551103,105090.0,105080.0,0.23540192]
[1738272655890,0.551103,105090.0,105080.0,0.00514258]
[1738272656180,0.551103,105090.0,105080.0,0.03294258]
[1738272656381,0.551103,105090.0,105080.0,0.00514258]
[1738272656577,0.70757076,105090.0,105080.0,0.00514258]
[1738272657073,0.70757076,105090.0,105080.0,0.00114258]
[1738272657474,0.70757076,105090.0,105080.0,0.00214258]
[1738272657780,0.190339,105070.0,105060.0,0.21815]
[1738272658083,0.551139,105070.0,105060.0,0.21815]
[1738272658976,0.551139,105070.0,105060.0,0.21915]
[1738272659784,0.551139,105070.0,105060.0,0.19135]
[1738272659987,0.551139,105070.0,105060.0,0.005]
[1738272659988,0.911939,105070.0,105060.0,0.005]
[1738272660174,1.09930676,105070.0,105060.0,0.005]
[1738272660781,1.13220676,105070.0,105060.0,0.005]
[1738272661293,1.13320676,105070.0,105060.0,0.004]
[1738272661792,0.190357,105060.0,105050.0,0.0015704]
[1738272661982,0.551157,105060.0,105050.0,0.0015704]
[1738272664186,0.551157,105060.0,105050.0,0.0025704]
[1738272664792,0.65556853,105060.0,105050.0,0.00114258]
[1738272664995,0.56962306,105060.0,105030.0,0.59696]
[1738272665183,1.01640553,105040.0,105030.0,0.56936]
[1738272665692,0.190412,105030.0,105020.0,0.4564296]
[1738272665893,0.551212,105030.0,105020.0,0.4287896]
[1738272666488,0.551212,105030.0,105020.0,0.2383616]
[1738272666696,0.551212,105030.0,105020.0,0.20227102]
[1738272666989,0.551212,105030.0,105020.0,0.30668255]
[1738272667297,0.551212,105030.0,105020.0,0.30768255]
[1738272667592,0.551212,105030.0,105020.0,0.20727102]
[1738272668185,0.551212,105030.0,105020.0,0.31168255]
[1738272668385,0.190412,105030.0,105020.0,0.31168255]
[1738272669295,0.551212,105030.0,105020.0,0.31168255]
[1738272671682,0.190412,105030.0,105020.0,0.31168255]
[1738272672096,0.190412,105030.0,105020.0,0.33932255]
[1738272672795,0.190412,105030.0,105020.0,0.33832255]
[1738272672991,0.190412,105030.0,105020.0,0.33932255]
[1738272673794,0.58464758,105040.0,105030.0,0.190412]
[1738272673993,0.58464758,105040.0,105030.0,0.29482353]
[1738272674393,0.58464758,105040.0,105030.0,0.32250353]
[1738272674897,0.58464758,105040.0,105030.0,0.32350353]
[1738272675092,0.55134758,105040.0,105030.0,0.42791506]
[1738272675297,0.55134758,105040.0,105030.0,0.29582353]
[1738272675492,0.55134758,105040.0,105030.0,0.32350353]
[1738272676001,0.55134758,105040.0,105030.0,0.42791506]
[1738272676496,0.4252,105050.0,105040.0,0.190394]
[1738272676497,0.3608,105050.0,105040.0,0.190394]
[1738272676703,0.3608,105050.0,105040.0,0.29480553]
[1738272677097,0.581465,105060.0,105050.0,0.190375]
[1738272677396,0.581465,105060.0,105050.0,0.32242653]
[1738272678700,0.586465,105060.0,105050.0,0.32242653]
[1738272679903,0.588465,105060.0,105050.0,0.32242653]
[1738272680702,0.558165,105060.0,105050.0,0.32242653]
[1738272681699,0.558165,105060.0,105050.0,0.13205153]
[1738272682506,0.558165,105060.0,105040.0,0.00014258]
[1738272682507,0.190375,105050.0,105040.0,0.00014258]
[1738272682695,0.584475,105050.0,105040.0,0.02778258]
[1738272682895,0.645875,105050.0,105040.0,0.02778258]
[1738272683095,0.645875,105050.0,105040.0,0.00014258]
[1738272683299,0.75028653,105050.0,105040.0,0.00014258]
[1738272683602,0.75128653,105050.0,105040.0,0.00014258]
[1738272683795,0.75328653,105050.0,105040.0,0.00014258]
[1738272684805,0.75128653,105050.0,105040.0,0.00014258]
[1738272684995,0.75328653,105050.0,105040.0,0.00014258]
[1738272685195,0.75228653,105050.0,105040.0,0.00014258]
[1738272685399,0.75428653,105050.0,105040.0,0.00014258]
[1738272685796,0.649875,105050.0,105040.0,0.00014258]
[1738272686007,0.648875,105050.0,105040.0,0.10455411]
[1738272686299,0.648875,105050.0,105040.0,0.02782258]
[1738272686503,0.647875,105050.0,105040.0,0.02782258]
[1738272687403,0.647875,105050.0,105040.0,0.21821658]
[1738272687601,0.647875,105050.0,105040.0,0.32262811]
[1738272689798,0.646875,105050.0,105040.0,0.32262811]
[1738272689998,0.646875,105050.0,105040.0,0.32362811]
[1738272690197,0.646875,105050.0,105040.0,0.32762811]
[1738272690398,0.646875,105050.0,105040.0,0.00514258]
[1738272690709,0.75028653,105050.0,105040.0,0.00114258]
[1738272690908,0.645875,105050.0,105040.0,0.00314258]
[1738272691496,0.75028653,105050.0,105040.0,0.00314258]
[1738272691699,0.75028653,105050.0,105040.0,0.00214258]
[1738272692503,0.75128653,105050.0,105040.0,0.00214258]
[1738272693005,0.646875,105050.0,105040.0,0.00214258]
[1738272693705,0.647875,105050.0,105040.0,0.00014258]
[1738272694809,0.75228653,105050.0,105040.0,0.00014258]
[1738272697012,0.86557496,105050.0,105040.0,0.00014258]
[1738272697597,0.87751601,105050.0,105040.0,0.00014258]
[1738272698914,0.76116343,105050.0,105040.0,0.00014258]
[1738272700312,0.86557496,105050.0,105040.0,0.00014258]
[1738272700514,0.76116343,105050.0,105040.0,0.00014258]
[1738272700899,0.86557496,105050.0,105040.0,0.00014258]
[1738272701105,0.76116343,105050.0,105040.0,0.19053658]
[1738272701615,0.76116343,105050.0,105040.0,0.00014258]
[1738272701805,0.86557496,105050.0,105040.0,0.00014258]
[1738272702206,0.86457496,105050.0,105040.0,0.00014258]
[1738272702516,0.86557496,105050.0,105040.0,0.00014258]
[1738272704411,0.86457496,105050.0,105040.0,0.00014258]
[1738272704720,0.86557496,105050.0,105040.0,0.00014258]
[1738272704905,0.86457496,105050.0,105040.0,0.00014258]
[1738272705106,0.86557496,105050.0,105040.0,0.00014258]
[1738272706517,0.86357496,105050.0,105040.0,0.00014258]
[1738272706721,0.76116343,105050.0,105040.0,0.00014258]
[1738272707012,0.76116343,105050.0,105040.0,0.19053658]
[1738272707206,0.76116343,105050.0,105040.0,0.21777658]
[1738272707407,0.66646343,105050.0,105040.0,0.32218811]
[1738272707715,0.30466343,105050.0,105040.0,0.41598811]
[1738272707915,0.30566343,105050.0,105040.0,0.41598811]
[1738272708217,0.192375,105050.0,105040.0,0.41598811]
[1738272708518,0.002,105050.0,105040.0,0.77678811]
[1738272710310,0.25452032,105060.0,105050.0,0.190375]
[1738272710510,0.16919396,105070.0,105060.0,0.190357]
[1738272710712,0.16919396,105070.0,105060.0,0.68288853]
[1738272710912,0.16919396,105070.0,105060.0,0.78730006]
[1738272711215,0.38753162,105090.0,105080.0,0.190321]
[1738272711420,0.551105,105090.0,105080.0,0.32209253]
[1738272712711,0.17063237,105100.0,105080.0,0.59698306]
[1738272712914,0.17063237,105100.0,105090.0,0.75992606]
[1738272713915,0.19865422,105110.0,105090.0,0.56962306]
[1738272713916,0.15396721,105110.0,105090.0,0.56962306]